bitfinex/quotes_SOLUSD_20250726
["timestamp","ask_amount","ask_price","bid_price","bid_amount"]
[1753545041119,4.88996139,187.79,187.76,0.67]
[1753545041537,4.88996139,187.78,187.74,0.67]
[1753545041739,4.88996139,187.75,187.71,0.67]
[1753545042399,4.88996139,187.76,187.72,0.67]
[1753545043023,4.88996139,187.75,187.72,0.67]
[1753545043917,6.1702,187.8,187.73,0.67]
[1753545044106,4.88996139,187.78,187.73,0.67]
[1753545044309,4.88996139,187.77,187.73,0.67]
[1753545044506,4.88996139,187.77,187.74,0.67]
[1753545044708,4.88996139,187.78,187.74,0.67]
[1753545045017,37.3,187.8,187.75,0.67]
[1753545045203,4.88996139,187.81,187.75,5.55996139]
[1753545045408,4.88996139,187.81,187.76,0.67]
[1753545046422,4.88996139,187.81,187.77,5.32566437]
[1753545046629,4.88996139,187.81,187.78,0.67]
[1753545047827,4.88996139,187.79,187.72,0.67]
[1753545048028,4.88996139,187.75,187.72,0.67]
[1753545048329,0.2,187.78,187.72,5.99708288]
[1753545048525,16.98468397,187.79,187.72,5.99708288]
[1753545048727,4.88996139,187.76,187.72,5.99708288]
[1753545049134,4.88996139,187.76,187.73,0.67]
[1753545049732,4.88996139,187.76,187.7,87.4]
[1753545049918,4.88996139,187.75,187.71,5.32736668]
[1753545050228,4.88996139,187.75,187.71,5.99736668]
[1753545051907,4.88996139,187.73,187.69,5.99774292]
[1753545052439,4.88996139,187.73,187.7,0.67]
[1753545052927,4.88996139,187.72,187.69,5.32774292]
[1753545053129,4.88996139,187.72,187.69,0.67]
[1753545053943,0.2,187.75,187.69,0.67]
[1753545054146,4.88996139,187.73,187.69,0.67]
[1753545054925,4.88996139,187.73,187.7,5.99762843]
[1753545057633,0.2,187.75,187.7,5.99762843]
[1753545057839,4.88996139,187.73,187.7,5.99762843]
[1753545058022,4.88996139,187.73,187.7,6.05762843]
[1753545058536,26.0,187.79,187.72,4.88996139]
[1753545058715,26.0,187.78,187.73,5.55996139]
[1753545058924,26.0,187.78,187.74,0.67]
[1753545059225,4.91996139,187.8,187.75,0.67]
[1753545059433,0.03,187.8,187.78,4.88996139]
[1753545059640,0.03,187.8,187.79,5.55996139]
[1753545060319,0.03,187.8,187.79,0.67]
[1753545060624,0.03,187.8,187.79,5.99509718]
[1753545061536,0.03,187.8,187.79,10.88505857]
[1753545066048,0.03,187.8,187.79,98.28505857]
[1753545066553,0.03,187.8,187.79,98.56938171]
[1753545066754,0.03,187.86,187.8,0.28432314]
[1753545067053,0.03,187.86,187.84,4.88996139]
[1753545067249,0.03,187.86,187.85,5.55996139]
[1753545068958,0.03,187.88,187.85,19.19328085]
[1753545069129,0.03,187.88,187.86,38.33432314]
[1753545069528,0.03,187.88,187.87,5.55996139]
[1753545070367,0.03,187.88,187.85,10.88335771]
[1753545070572,0.03,187.88,187.83,10.88369469]
[1753545070864,0.03,187.88,187.84,10.88344249]
[1753545071361,0.03,187.88,187.82,4.88996139]
[1753545071362,4.91996139,187.88,187.82,4.88996139]
[1753545071566,4.88996139,187.83,187.76,1.6426]
[1753545071762,4.88996139,187.81,187.78,0.67]
[1753545071966,0.1,187.84,187.78,0.67]
[1753545072134,4.88996139,187.82,187.78,0.67]
[1753545072485,4.88996139,187.82,187.71,10.28432314]
[1753545072486,4.88996139,187.79,187.72,6.53256139]
[1753545072666,0.1,187.81,187.7,6.443]
[1753545072667,4.88996139,187.75,187.7,0.73]
[1753545072841,4.88996139,187.76,187.71,0.67]
[1753545073040,4.88996139,187.75,187.71,0.67]
[1753545073460,4.88996139,187.75,187.7,0.06]
[1753545073847,4.88996139,187.75,187.7,0.73]
[1753545074166,4.88996139,187.76,187.71,0.67]
[1753545074469,4.88996139,187.75,187.71,0.67]
[1753545074767,7.80692356,187.75,187.71,0.67]
[1753545074974,0.1,187.79,187.72,0.67]
[1753545075147,7.80692356,187.76,187.7,13.19435123]
[1753545075360,7.80692356,187.76,187.7,13.86435123]
[1753545075542,7.80692356,187.76,187.7,13.19435123]
[1753545075738,37.7,187.81,187.73,7.80692356]
[1753545075940,37.7,187.81,187.73,8.47692356]
[1753545076175,7.80692356,187.79,187.73,8.47692356]
[1753545076758,7.80692356,187.79,187.73,13.80355419]
[1753545077773,7.80692356,187.74,187.7,0.73]
[1753545078379,7.80692356,187.73,187.7,0.06]
[1753545078546,7.80692356,187.72,187.7,0.06]
[1753545078950,7.80692356,187.73,187.7,0.73]
[1753545080373,7.80692356,187.74,187.7,0.73]
[1753545081182,7.80692356,187.74,187.71,0.67]
[1753545081683,7.80692356,187.74,187.7,0.06]
[1753545081860,7.80692356,187.74,187.7,0.73]
[1753545082953,7.80692356,187.74,187.7,0.06]
[1753545083166,7.80692356,187.73,187.7,0.06]
[1753545083952,7.80692356,187.72,187.7,0.06]
[1753545085083,0.2,187.75,187.7,0.06]
[1753545085383,7.80692356,187.73,187.7,0.06]
[1753545085754,7.80692356,187.73,187.7,0.74]
[1753545087496,7.80692356,187.73,187.7,0.06]
[1753545087709,7.80692356,187.72,187.7,0.06]
[1753545088375,5.52626742,187.75,187.7,0.06]
[1753545088608,7.80692356,187.72,187.7,0.06]
[1753545092286,5.52628677,187.75,187.7,0.06]
[1753545092597,7.80692356,187.73,187.7,0.06]
[1753545093406,7.80692356,187.73,187.7,0.74]
[1753545093589,7.80692356,187.74,187.71,0.68]
[1753545094101,7.80692356,187.73,187.7,0.06]
[1753545094706,7.80692356,187.72,187.7,0.06]
[1753545094909,4.88077766,187.73,187.7,0.06]
[1753545098182,4.88077766,187.71,187.7,0.06]
[1753545098385,21.66546163,187.71,187.7,0.06]
[1753545098599,21.86546163,187.71,187.7,0.06]
[1753545100290,26.69282831,187.71,187.7,0.06]
[1753545100488,31.57360597,187.71,187.7,0.06]
[1753545100687,4.88077766,187.64,187.62,0.06]
[1753545100898,37.52,187.66,187.63,0.68]
[1753545101208,37.52,187.66,187.62,0.06]
[1753545101381,37.52,187.66,187.64,0.68]
[1753545101821,37.52,187.66,187.64,6.00932106]
[1753545102310,37.52,187.66,187.64,0.74]
[1753545102490,42.40077766,187.66,187.64,0.74]
[1753545102691,4.88077766,187.65,187.64,0.06]
[1753545105617,5.08077766,187.65,187.64,0.06]
[1753545106313,4.88077766,187.65,187.64,0.06]
[1753545109417,42.38077766,187.65,187.64,0.06]
[1753545112653,4.88077766,187.67,187.64,0.74]
[1753545112795,37.48,187.66,187.64,6.0692963]
[1753545112996,37.48,187.66,187.65,0.68]
[1753545115902,4.88077766,187.68,187.65,6.00907007]
[1753545116105,37.46,187.67,187.66,0.72]
[1753545117029,42.34077766,187.67,187.66,0.72]
[1753545117229,37.46,187.67,187.66,0.72]
[1753545120439,37.46,187.67,187.66,6.0487861]
[1753545123734,4.88077766,187.7,187.66,6.0487861]
[1753545123914,37.42,187.69,187.67,0.72]
[1753545125122,37.42,187.69,187.68,0.72]
[1753545126137,37.42,187.69,187.66,6.0487861]
[1753545126634,4.88077766,187.68,187.64,0.78]
[1753545126815,4.88077766,187.65,187.64,0.06]
[1753545127138,42.28077766,187.65,187.64,0.06]
[1753545132336,37.4,187.65,187.64,0.06]
[1753545132537,42.28077766,187.65,187.64,0.06]
[1753545133245,42.28077766,187.65,187.64,0.78]
[1753545133445,42.28077766,187.65,187.64,0.06]
[1753545135949,47.60984773,187.65,187.64,0.06]
[1753545136150,47.80984773,187.65,187.64,0.06]
[1753545137239,47.60984773,187.65,187.64,0.06]
[1753545137445,42.28077766,187.65,187.64,0.06]
[1753545138350,47.60984773,187.65,187.64,0.06]
[1753545139338,47.60984773,187.65,187.64,0.78]
[1753545139339,42.28077766,187.65,187.64,0.78]
[1753545140328,42.28077766,187.65,187.64,0.06]
[1753545140947,4.88077766,187.65,187.64,0.06]
[1753545141131,37.38,187.65,187.64,0.06]
[1753545141333,6.0839,187.7,187.64,0.06]
[1753545141541,4.88077766,187.66,187.64,0.78]
[1753545141739,37.38,187.65,187.64,0.78]
[1753545143354,42.26077766,187.65,187.64,0.78]
[1753545148461,37.38,187.65,187.64,0.78]
[1753545148653,42.26077766,187.65,187.64,0.78]
[1753545150183,42.26077766,187.65,187.64,0.06]
[1753545150734,64.5745317,187.65,187.64,0.06]
[1753545150938,72.15540481,187.65,187.64,0.06]
[1753545154362,73.78580481,187.65,187.64,0.06]
[1753545157641,16.78468397,187.62,187.6,0.06]
[1753545157857,67.83600829,187.61,187.6,0.06]
[1753545158136,25.65523063,187.61,187.6,0.06]
[1753545158353,58.96546163,187.61,187.6,0.73]
[1753545158746,4.88077766,187.67,187.6,5.61077766]
[1753545159069,37.32,187.66,187.61,5.55077766]
[1753545159242,42.20077766,187.66,187.61,4.88077766]
[1753545159444,4.88077766,187.67,187.62,0.67]
[1753545159661,37.32,187.66,187.62,5.99988975]
[1753545159972,37.32,187.66,187.63,0.67]
[1753545161666,4.88077766,187.67,187.63,0.67]
[1753545161868,37.32,187.66,187.63,0.67]
[1753545162464,4.88077766,187.67,187.63,0.67]
[1753545163157,37.3,187.66,187.63,0.67]
[1753545164168,37.3,187.65,187.63,0.67]
[1753545164354,16.78468397,187.67,187.63,0.67]
[1753545164675,37.32,187.66,187.63,0.67]
[1753545165762,37.32,187.66,187.61,10.21094082]
[1753545165966,37.32,187.66,187.64,0.67]
[1753545167385,37.32,187.66,187.61,10.21094082]
[1753545167576,37.32,187.66,187.64,0.67]
[1753545168073,37.32,187.66,187.65,0.67]
[1753545168973,37.28,187.66,187.65,0.67]
[1753545169771,16.78468397,187.67,187.65,0.67]
[1753545169966,37.32,187.66,187.65,0.67]
[1753545172948,37.32,187.66,187.62,10.21064072]
[1753545172949,37.32,187.66,187.63,0.67]
[1753545175177,37.32,187.66,187.63,10.88040707]
[1753545175356,37.32,187.66,187.63,10.21040707]
[1753545175681,37.32,187.66,187.64,0.68]
[1753545177054,37.32,187.66,187.65,0.68]
[1753545179578,0.03,187.7,187.65,5.56077766]
[1753545179786,37.28,187.68,187.66,0.68]
[1753545180083,4.88077766,187.67,187.64,0.68]
[1753545180258,37.28,187.66,187.64,0.68]
[1753545182087,37.28,187.66,187.65,0.68]
[1753545183886,37.26,187.66,187.65,0.68]
[1753545184899,37.26,187.66,187.63,0.68]
[1753545186268,37.26,187.66,187.64,0.68]
[1753545189593,37.26,187.66,187.63,5.32957045]
[1753545189768,37.26,187.66,187.64,0.68]
[1753545192480,37.26,187.66,187.62,5.32986011]
[1753545192699,37.26,187.66,187.63,0.68]
[1753545192865,37.26,187.66,187.64,0.68]
[1753545193590,0.03,187.7,187.65,5.56077766]
[1753545193792,37.24,187.69,187.66,4.88077766]
[1753545194092,37.24,187.69,187.67,0.68]
[1753545194394,37.24,187.69,187.68,0.68]
[1753545194767,16.78468397,187.68,187.64,0.68]
[1753545195087,37.24,187.67,187.62,0.68]
[1753545196194,37.24,187.67,187.63,0.68]
[1753545196888,42.12077766,187.67,187.63,0.68]
[1753545200471,37.24,187.67,187.63,0.68]
[1753545203194,3.99655832,187.66,187.63,0.68]
[1753545205976,3.99655832,187.66,187.61,6.03013679]
[1753545206184,3.99655832,187.66,187.62,0.7]
[1753545206389,3.99655832,187.66,187.61,5.33013679]
[1753545206696,3.99655832,187.66,187.63,0.7]
[1753545209485,4.88077766,187.64,187.6,0.76]
[1753545209798,4.88077766,187.64,187.62,0.06]
[1753545209799,42.28077766,187.64,187.62,0.06]
[1753545211587,42.08077766,187.64,187.62,0.06]
[1753545211783,21.66546163,187.65,187.62,0.06]
[1753545212105,37.2,187.64,187.62,0.76]
[1753545212802,37.2,187.64,187.63,0.7]
[1753545213906,37.2,187.64,187.62,0.76]
[1753545214098,37.2,187.64,187.62,6.08986304]
[1753545214407,37.2,187.64,187.63,0.7]
[1753545214792,37.2,187.64,187.62,5.38986304]
[1753545215108,37.2,187.64,187.62,6.08986304]
[1753545217403,42.28077766,187.64,187.62,0.06]
[1753545217919,0.2,187.63,187.62,0.06]
[1753545218082,25.86128833,187.63,187.62,0.06]
[1753545219088,21.86546163,187.63,187.62,0.06]
[1753545219285,21.66546163,187.63,187.62,0.06]
[1753545219491,16.78468397,187.63,187.62,0.06]
[1753545219701,37.2,187.63,187.62,0.76]
[1753545220793,37.2,187.63,187.62,0.06]
[1753545223909,42.08077766,187.63,187.62,0.06]
[1753545224105,4.88077766,187.63,187.62,0.06]
[1753545224300,42.08077766,187.63,187.62,0.06]
[1753545224529,64.39509974,187.63,187.62,0.06]
[1753545224711,68.38717435,187.63,187.62,0.06]
[1753545224906,97.98051125,187.63,187.62,0.06]
[1753545225107,94.38717435,187.63,187.62,0.06]
[1753545225917,97.97933743,187.63,187.62,0.06]
[1753545226135,94.38717435,187.63,187.62,0.06]
[1753545227319,68.38717435,187.63,187.62,0.06]
[1753545227522,71.97723243,187.63,187.62,0.06]
[1753545233140,68.41717435,187.63,187.62,0.06]
[1753545234043,71.99212295,187.63,187.62,0.06]
[1753545234730,16.78468397,187.6,187.59,0.06]
[1753545234916,93.74887168,187.6,187.59,0.06]
[1753545235116,93.94887168,187.6,187.59,0.06]
[1753545235628,16.78468397,187.59,187.58,0.06]
[1753545235814,25.84809402,187.59,187.58,0.06]
[1753545236221,27.19623619,187.59,187.58,0.06]
[1753545236828,21.66546163,187.59,187.58,0.76]
[1753545237150,64.21623619,187.59,187.58,0.76]
[1753545238862,64.21623619,187.59,187.58,0.06]
[1753545240330,64.41623619,187.59,187.58,0.06]
[1753545240530,48.11602693,187.57,187.56,0.06]
[1753545240747,90.21680459,187.57,187.56,0.06]
[1753545240934,90.41680459,187.57,187.56,0.06]
[1753545241134,16.78468397,187.56,187.54,0.06]
[1753545241469,21.86546163,187.56,187.54,0.06]
[1753545242642,27.19708884,187.56,187.54,0.06]
[1753545243548,26.99708884,187.56,187.54,0.06]
[1753545244144,30.97285003,187.56,187.54,0.06]
[1753545245347,26.99708884,187.56,187.54,0.06]
[1753545246236,64.21708884,187.56,187.55,0.76]
[1753545246853,16.78468397,187.56,187.55,0.76]
[1753545247060,5.35970751,187.63,187.55,0.76]
[1753545247241,4.88077766,187.59,187.55,0.76]
[1753545247554,37.24,187.58,187.55,6.09182843]
[1753545247783,37.24,187.58,187.56,0.7]
[1753545250471,42.12077766,187.58,187.57,0.7]
[1753545250772,58.90546163,187.58,187.56,0.7]
[1753545251441,58.90546163,187.58,187.57,0.7]
[1753545251860,54.02468397,187.58,187.57,0.7]
[1753545253245,58.90546163,187.58,187.57,0.7]
[1753545254265,54.02468397,187.58,187.57,0.7]
[1753545254568,58.90546163,187.58,187.57,0.7]
[1753545254731,16.78468397,187.57,187.56,0.06]
[1753545254932,21.66546163,187.57,187.56,0.06]
[1753545255136,16.78468397,187.57,187.56,0.76]
[1753545255351,21.66546163,187.57,187.56,0.76]
[1753545257458,37.24,187.58,187.56,0.76]
[1753545257657,42.12077766,187.58,187.56,0.76]
[1753545258666,47.45195409,187.58,187.56,0.76]
[1753545258870,4.88077766,187.57,187.56,0.06]
[1753545259058,4.88077766,187.57,187.56,0.76]
[1753545259574,21.66546163,187.57,187.56,0.06]
[1753545261745,16.78468397,187.57,187.56,0.76]
[1753545262964,54.02468397,187.57,187.56,0.76]
[1753545264564,37.24,187.57,187.56,0.76]
[1753545267246,37.28,187.57,187.56,0.76]
[1753545274878,38.0,187.57,187.56,0.06]
[1753545275099,59.66546163,187.57,187.56,0.06]
[1753545276287,54.06468397,187.57,187.56,0.06]
[1753545278569,54.78468397,187.57,187.56,0.06]
[1753545278884,54.06468397,187.57,187.56,0.06]
[1753545280572,58.94546163,187.57,187.56,0.06]
[1753545280761,90.99680459,187.57,187.56,0.06]
[1753545280968,98.57961978,187.57,187.56,0.06]
[1753545281167,94.98762995,187.57,187.56,0.06]
[1753545285192,98.57852661,187.57,187.56,0.06]
[1753545285890,72.57852661,187.57,187.56,0.06]
[1753545286071,47.66546163,187.56,187.55,0.06]
[1753545286276,55.96718365,187.56,187.55,0.06]
[1753545286686,3.99082536,187.56,187.55,5.63077766]
[1753545287013,37.24,187.57,187.55,5.63077766]
[1753545287290,26.03,187.59,187.55,4.94077766]
[1753545287291,37.24,187.56,187.55,4.94077766]
[1753545287497,37.24,187.56,187.55,0.06]
[1753545287864,37.24,187.56,187.55,0.75]
[1753545288484,37.24,187.56,187.55,5.63077766]
[1753545288872,37.24,187.56,187.55,0.75]
[1753545289291,37.24,187.56,187.55,10.96268915]
[1753545289599,0.03,187.59,187.55,10.96268915]
[1753545289774,0.03,187.59,187.58,4.88077766]
[1753545289968,37.27,187.59,187.58,4.88077766]
[1753545290169,37.27,187.59,187.58,10.9018364]
[1753545290579,0.03,187.59,187.58,10.9018364]
[1753545291369,0.03,187.59,187.58,17.3265364]
[1753545292786,0.03,187.59,187.58,12.44575874]
[1753545292966,0.03,187.59,187.58,7.1147]
[1753545294089,0.03,187.59,187.56,0.71]
[1753545294277,0.03,187.59,187.58,0.71]
[1753545296570,0.03,187.59,187.56,6.04146185]
[1753545296792,37.24,187.58,187.56,0.71]
[1753545297480,37.24,187.58,187.55,0.06]
[1753545297990,37.24,187.58,187.56,0.71]
[1753545298678,37.24,187.58,187.55,5.39181181]
[1753545298881,37.24,187.58,187.57,0.71]
[1753545300196,37.25,187.59,187.57,0.71]
[1753545300489,37.25,187.59,187.57,5.59077766]
[1753545300693,37.25,187.59,187.58,0.71]
[1753545303998,37.25,187.59,187.57,5.33120926]
[1753545304201,37.25,187.59,187.57,0.71]
[1753545305608,42.84077766,187.59,187.55,0.06]
[1753545306211,42.84077766,187.59,187.55,0.77]
[1753545307776,37.96,187.59,187.55,0.77]
[1753545311006,37.25,187.59,187.55,0.06]
[1753545311211,0.71,187.58,187.55,0.06]
[1753545311708,0.71,187.57,187.55,0.06]
[1753545311913,37.22,187.56,187.55,0.06]
[1753545314608,42.81077766,187.56,187.55,0.06]
[1753545315010,64.92708884,187.56,187.55,0.06]
[1753545315892,18.43698397,187.55,187.54,0.06]
[1753545316096,28.0143442,187.55,187.54,0.06]
[1753545316311,33.34625569,187.55,187.54,0.06]
[1753545316514,42.78468397,187.53,187.52,0.06]
[1753545316815,88.87092181,187.53,187.52,0.06]
[1753545317015,89.17092181,187.53,187.52,0.06]
[1753545318611,90.51794176,187.53,187.52,0.06]
[1753545320719,48.4171641,187.53,187.52,0.06]
[1753545320892,16.78468397,187.53,187.52,0.06]
[1753545321098,58.88546163,187.53,187.52,0.06]
[1753545322799,64.21794176,187.53,187.52,0.06]
[1753545323221,64.92794176,187.53,187.52,0.06]
[1753545324997,58.90546163,187.53,187.52,0.78]
[1753545325197,37.24,187.53,187.52,0.78]
[1753545329699,58.90546163,187.53,187.52,0.06]
[1753545331006,37.24,187.53,187.52,0.78]
[1753545332536,21.66546163,187.56,187.52,0.78]
[1753545332846,26.0,187.57,187.52,10.99348626]
[1753545333006,37.24,187.56,187.52,10.27348626]
[1753545333207,37.24,187.56,187.53,0.72]
[1753545334025,37.24,187.56,187.53,6.05229519]
[1753545334244,37.24,187.56,187.53,5.33229519]
[1753545334432,37.24,187.56,187.54,0.72]
[1753545335043,37.24,187.56,187.55,0.72]
[1753545340043,37.27,187.56,187.55,0.72]
[1753545343334,37.27,187.56,187.55,6.05191149]
[1753545343833,37.27,187.56,187.55,5.33191149]
[1753545344147,37.27,187.56,187.55,6.05191149]
[1753545348548,37.27,187.56,187.55,0.72]
[1753545349351,37.27,187.56,187.55,6.05191149]
[1753545353445,37.27,187.56,187.54,10.21290076]
[1753545353751,37.27,187.56,187.54,10.93290076]
[1753545355158,0.03,187.56,187.55,5.54077766]
[1753545356450,0.03,187.56,187.55,7.16677766]
[1753545357260,0.03,187.56,187.55,12.49868915]
[1753545359258,0.03,187.59,187.55,25.82846787]
[1753545359471,0.03,187.59,187.58,4.88077766]
[1753545359685,0.03,187.59,187.58,31.1651008]
[1753545359964,0.03,187.59,187.58,32.35820667]
[1753545360345,0.03,187.59,187.58,37.68926541]
[1753545362236,0.03,187.59,187.58,32.80848775]
[1753545362537,0.03,187.59,187.58,37.68926541]
[1753545362833,0.03,187.59,187.58,36.74494227]
[1753545363038,0.03,187.59,187.58,10.2118364]
[1753545363654,0.03,187.59,187.58,10.8718364]
[1753545363959,0.03,187.59,187.58,10.2118364]
[1753545364159,0.03,187.59,187.58,10.8718364]
[1753545376369,0.03,187.59,187.58,4.88077766]
[1753545376683,0.03,187.59,187.58,5.54077766]
[1753545377376,0.03,187.59,187.58,4.88077766]
[1753545377551,0.03,187.59,187.58,10.2118364]
[1753545377890,0.03,187.59,187.58,10.8718364]
[1753545381360,0.03,187.59,187.58,10.2118364]
[1753545383777,0.03,187.59,187.58,10.2718364]
[1753545387273,0.75,187.59,187.58,0.06]
[1753545387581,5.63077766,187.59,187.58,0.06]
[1753545391991,0.75,187.59,187.58,0.06]
[1753545392285,0.03,187.59,187.58,0.06]
[1753545392665,0.75,187.59,187.58,0.06]
[1753545393276,5.63077766,187.59,187.58,0.06]
[1753545396295,0.75,187.59,187.58,0.06]
[1753545396464,5.63077766,187.59,187.58,0.06]
[1753545397166,10.96155222,187.59,187.58,0.06]
[1753545399474,14.94794276,187.59,187.58,0.06]
[1753545400201,14.94794309,187.59,187.58,0.06]
[1753545400697,48.16155222,187.59,187.58,0.06]
[1753545407299,64.94623619,187.59,187.58,0.06]
[1753545414011,68.92705328,187.59,187.58,0.06]
[1753545414203,64.94623619,187.59,187.58,0.06]
[1753545416819,63.19466856,187.59,187.58,0.06]
[1753545420812,67.17638682,187.59,187.58,0.06]
[1753545422400,66.45638682,187.59,187.58,0.06]
[1753545425805,62.47466856,187.59,187.58,0.06]
[1753545426005,66.45921528,187.59,187.58,0.06]
[1753545427626,63.33000525,187.59,187.58,0.06]
[1753545427813,66.45921528,187.59,187.58,0.76]
[1753545428312,66.45921528,187.59,187.58,0.06]
[1753545428705,63.33000525,187.59,187.58,0.06]
[1753545428900,66.45921528,187.59,187.58,0.06]
[1753545432132,70.05265005,187.59,187.58,0.06]
[1753545434219,70.70265005,187.59,187.58,0.06]
[1753545435630,70.05265005,187.59,187.58,0.06]
[1753545435937,66.92344002,187.59,187.58,0.06]
[1753545436146,70.05265005,187.59,187.58,0.06]
[1753545436835,7.60798149,187.59,187.58,0.76]
[1753545437033,0.03,187.59,187.58,0.76]
[1753545437239,0.03,187.59,187.58,3.88921003]
[1753545438332,0.03,187.59,187.58,9.22026877]
[1753545443341,0.03,187.59,187.58,0.76]
[1753545443932,37.23,187.59,187.58,0.76]
[1753545447255,0.03,187.59,187.58,9.22026877]
[1753545448768,0.03,187.59,187.58,6.09105874]
[1753545449058,0.03,187.59,187.58,10.9757768]
[1753545451237,0.03,187.59,187.58,6.09105874]
[1753545451535,0.03,187.59,187.58,10.9757768]
[1753545451734,0.03,187.59,187.58,6.09105874]
[1753545451932,0.03,187.59,187.58,10.9757768]
[1753545454467,0.03,187.59,187.58,6.09105874]
[1753545454685,0.03,187.59,187.58,0.06]
[1753545455340,42.76471806,187.59,187.58,0.06]
[1753545455950,37.88,187.59,187.58,0.06]
[1753545457151,37.21,187.59,187.58,0.06]
[1753545465063,37.88,187.59,187.58,0.06]
[1753545465271,64.88017659,187.59,187.58,0.06]
[1753545472589,72.45232767,187.59,187.58,0.06]
[1753545473488,16.78468397,187.55,187.54,0.06]
[1753545473660,57.95009531,187.55,187.54,0.06]
[1753545473859,63.50481337,187.55,187.54,0.06]
[1753545474279,59.51940203,187.55,187.54,0.06]
[1753545474477,64.85131352,187.55,187.54,0.06]
[1753545479483,58.84940203,187.55,187.54,0.76]
[1753545479797,59.52940203,187.55,187.54,0.06]
[1753545480479,58.84940203,187.55,187.54,0.06]
[1753545481059,53.96468397,187.55,187.54,0.06]
[1753545481265,58.84940203,187.55,187.54,0.06]
[1753545482190,64.86131352,187.55,187.54,0.06]
[1753545483061,64.18131352,187.55,187.54,0.06]
[1753545483877,27.00131352,187.55,187.54,0.06]
[1753545484078,64.18131352,187.55,187.54,0.06]
[1753545484295,64.86131352,187.55,187.54,0.06]
[1753545484484,68.83934977,187.55,187.54,0.06]
[1753545484977,64.86131352,187.55,187.54,0.06]
[1753545490590,42.78468397,187.53,187.52,0.06]
[1753545490788,84.84940203,187.53,187.52,0.06]
[1753545491004,85.52940203,187.53,187.52,0.06]
[1753545491700,90.86188216,187.53,187.52,0.06]
[1753545495285,94.83514368,187.53,187.52,0.06]
[1753545496495,90.86188216,187.53,187.52,0.06]
[1753545497203,90.88188216,187.53,187.52,0.06]
[1753545498115,94.85651664,187.53,187.52,0.06]
[1753545498300,90.88188216,187.53,187.52,0.06]
[1753545498704,16.78468397,187.52,187.51,0.2]
[1753545499020,22.34940203,187.52,187.51,0.2]
[1753545499192,59.54940203,187.52,187.51,0.2]
[1753545499996,69.19692446,187.52,187.51,0.2]
[1753545500518,31.99692446,187.52,187.51,0.2]
[1753545500838,69.19692446,187.52,187.51,0.2]
[1753545503229,31.99692446,187.52,187.51,0.2]
[1753545503531,78.05710386,187.52,187.5,1e-08]
[1753545503722,31.20958143,187.51,187.5,1e-08]
[1753545503926,26.0,187.49,187.48,0.06]
[1753545504242,62.84588725,187.49,187.48,0.06]
[1753545504613,63.52588725,187.49,187.48,0.06]
[1753545504812,59.54940203,187.49,187.48,0.06]
[1753545505018,63.52499868,187.49,187.48,0.06]
[1753545505313,68.85822169,187.49,187.48,0.06]
[1753545506527,68.17822169,187.49,187.48,0.06]
[1753545508231,68.85822169,187.49,187.48,0.06]
[1753545510014,68.17822169,187.49,187.48,0.06]
[1753545510729,20.75988584,187.49,187.48,0.75]
[1753545510904,53.98468397,187.49,187.48,0.75]
[1753545511223,58.86940203,187.49,187.48,0.75]